bitfinex-derivatives/quotes_BTCF0:USTF0_20250724
["timestamp","ask_amount","ask_price","bid_price","bid_amount"]
[1753370011734,0.80969123,119450.0,119440.0,0.04839]
[1753370012627,1.22435655,119450.0,119440.0,0.002]
[1753370012831,0.1673704,119430.0,119420.0,0.16772669]
[1753370013031,1.3188004,119430.0,119420.0,0.06473669]
[1753370013227,0.9580004,119430.0,119420.0,0.06473669]
[1753370013428,0.9580004,119430.0,119420.0,0.38511669]
[1753370013736,0.9580004,119430.0,119420.0,0.91330109]
[1753370013929,0.9580004,119430.0,119420.0,0.74591669]
[1753370013930,0.3230804,119430.0,119420.0,0.74591669]
[1753370014128,0.6838804,119430.0,119420.0,0.38811669]
[1753370014320,1.3206404,119430.0,119420.0,0.38811669]
[1753370015225,1.3206404,119430.0,119420.0,0.39111669]
[1753370015629,1.3206404,119430.0,119420.0,0.55850109]
[1753370015833,1.3206404,119430.0,119420.0,0.39111669]
[1753370016036,1.3206404,119430.0,119420.0,0.58646768]
[1753370016235,1.3206404,119430.0,119420.0,0.41908328]
[1753370016832,0.9598404,119430.0,119420.0,0.58646768]
[1753370017032,0.9598404,119430.0,119420.0,1.001133]
[1753370017335,0.9598404,119430.0,119420.0,0.41908328]
[1753370017936,0.9598404,119430.0,119420.0,0.58646768]
[1753370018134,0.9598404,119430.0,119420.0,0.41908328]
[1753370018342,1.3206404,119430.0,119420.0,0.41908328]
[1753370018540,1.3206404,119430.0,119420.0,0.09870328]
[1753370018839,1.86114594,119430.0,119420.0,0.02434669]
[1753370019036,0.80972062,119430.0,119420.0,0.02434669]
[1753370019233,1.45900062,119430.0,119420.0,0.02434669]
[1753370019423,1.45900062,119430.0,119420.0,0.05285074]
[1753370019627,1.87366594,119430.0,119420.0,0.02434669]
[1753370019929,1.45900062,119430.0,119420.0,0.02434669]
[1753370020129,1.87366594,119430.0,119420.0,0.02434669]
[1753370022234,1.45900062,119430.0,119420.0,0.02434669]
[1753370022837,1.87366594,119430.0,119420.0,0.02434669]
[1753370023130,1.45900062,119430.0,119420.0,0.02434669]
[1753370023332,0.80972062,119430.0,119420.0,0.97658641]
[1753370023533,1.09944062,119430.0,119420.0,0.97658641]
[1753370023732,0.23613022,119430.0,119420.0,1.33738641]
[1753370023942,1.8557052,119440.0,119430.0,0.3170504]
[1753370024128,2.5062652,119440.0,119430.0,0.95222572]
[1753370024334,2.5062652,119440.0,119430.0,0.78485532]
[1753370024335,2.63218984,119440.0,119430.0,0.78485532]
[1753370024531,2.63218984,119440.0,119430.0,0.37019]
[1753370025135,2.63218984,119440.0,119430.0,0.5375604]
[1753370025333,2.63218984,119440.0,119430.0,0.5395604]
[1753370025538,2.63218984,119440.0,119430.0,0.37219]
[1753370025735,2.63218984,119440.0,119410.0,0.48874149]
[1753370025937,0.8864726,119430.0,119420.0,0.77356652]
[1753370026239,1.2472726,119430.0,119420.0,0.77356652]
[1753370026439,1.2472726,119430.0,119420.0,0.3589012]
[1753370026943,1.2472726,119430.0,119420.0,0.77656652]
[1753370027140,1.2472726,119430.0,119420.0,0.3669012]
[1753370027348,0.7216,119430.0,119420.0,0.5343732]
[1753370027536,1.37572,119430.0,119420.0,0.5343732]
[1753370027730,1.37572,119430.0,119420.0,1.04822852]
[1753370028035,1.37572,119430.0,119420.0,0.7548832]
[1753370028440,1.5430904,119430.0,119420.0,1.16954852]
[1753370028642,0.7216,119430.0,119420.0,0.7548832]
[1753370028842,0.8889704,119430.0,119420.0,0.7548832]
[1753370029045,0.8889704,119430.0,119420.0,1.17154852]
[1753370029233,0.8889704,119430.0,119420.0,0.7768832]
[1753370029434,0.8889704,119430.0,119420.0,0.7468832]
[1753370029640,0.9361104,119430.0,119420.0,0.7468832]
[1753370029840,0.9361104,119430.0,119420.0,0.8153111]
[1753370030041,0.9361104,119430.0,119420.0,1.22997642]
[1753370030344,0.9361104,119430.0,119420.0,0.8153111]
[1753370030540,0.9361104,119430.0,119420.0,1.22997642]
[1753370030747,0.9361104,119430.0,119420.0,0.8153111]
[1753370030945,0.9361104,119430.0,119420.0,1.22997642]
[1753370031246,0.76874,119430.0,119420.0,0.8153111]
[1753370031444,0.76874,119430.0,119420.0,1.22997642]
[1753370031648,0.9361104,119430.0,119420.0,0.6478391]
[1753370031837,1.2472704,119430.0,119420.0,0.5581438]
[1753370032442,1.2472704,119430.0,119420.0,0.97280912]
[1753370032748,1.2472704,119430.0,119420.0,0.5581438]
[1753370032947,1.2472704,119430.0,119420.0,0.97280912]
[1753370033137,1.2472704,119430.0,119420.0,0.5581438]
[1753370033344,1.2472704,119430.0,119420.0,0.97280912]
[1753370034040,1.2472704,119430.0,119420.0,0.5581438]
[1753370034647,1.2472704,119430.0,119420.0,0.97280912]
[1753370034848,1.2472704,119430.0,119420.0,0.5581438]
[1753370035247,1.2472704,119430.0,119420.0,0.97280912]
[1753370035851,1.2472704,119430.0,119420.0,0.5581438]
[1753370036350,1.2472704,119430.0,119420.0,0.97280912]
[1753370036951,1.2472704,119430.0,119420.0,1.02065912]
[1753370037139,1.2472704,119430.0,119420.0,0.6059938]
[1753370037340,1.2472704,119430.0,119420.0,1.02065912]
[1753370037953,1.0799,119430.0,119420.0,0.6059938]
[1753370038147,1.0799,119430.0,119420.0,1.02065912]
[1753370039550,1.0799,119430.0,119420.0,0.6059938]
[1753370039749,1.2472704,119430.0,119420.0,1.02065912]
[1753370039948,1.0799,119430.0,119420.0,1.02065912]
[1753370040453,1.2472704,119430.0,119420.0,0.6059938]
[1753370040641,1.2472704,119430.0,119420.0,1.02065912]
[1753370041353,1.2472704,119430.0,119420.0,0.6059938]
[1753370041547,1.2472704,119430.0,119420.0,1.02065912]
[1753370041849,1.2472704,119430.0,119420.0,0.2954438]
[1753370042046,1.2472704,119430.0,119420.0,0.2458038]
[1753370042347,1.2472704,119430.0,119420.0,0.0784279]
[1753370042554,1.2472704,119430.0,119420.0,0.2458123]
[1753370044152,1.9227104,119430.0,119420.0,0.83313762]
[1753370044356,1.9227104,119430.0,119420.0,0.4681123]
[1753370044855,1.9227104,119430.0,119420.0,0.88277762]
[1753370045043,1.9227104,119430.0,119420.0,0.4681123]
[1753370045548,1.9227104,119430.0,119420.0,0.0784279]
[1753370045851,1.9227104,119430.0,119420.0,0.29012214]
[1753370046247,1.9227104,119430.0,119420.0,0.12273774]
[1753370046443,2.46357403,119430.0,119420.0,0.0784279]
[1753370046649,0.5256844,119420.0,119410.0,0.06284717]
[1753370046851,1.30114972,119420.0,119410.0,0.06284717]
[1753370047148,1.01268271,119420.0,119410.0,0.06284717]
[1753370047649,1.42734803,119420.0,119410.0,0.06284717]
[1753370047854,1.01268271,119420.0,119410.0,0.15367663]
[1753370048062,1.01268271,119420.0,119410.0,0.06284717]
[1753370048554,1.01268271,119420.0,119410.0,0.04430984]
[1753370048945,1.01368271,119420.0,119410.0,0.04430984]
[1753370049454,1.01368271,119420.0,119410.0,0.06828297]
[1753370049855,1.42834803,119420.0,119410.0,0.04430984]
[1753370050047,0.4826824,119400.0,119390.0,0.07746709]
[1753370050247,1.9602824,119400.0,119390.0,0.1674264]
[1753370050453,0.38779,119390.0,119380.0,0.50475716]
[1753370050653,0.9160164,119390.0,119380.0,0.95153308]
[1753370050854,0.74859,119390.0,119380.0,0.45316046]
[1753370051154,0.9160164,119390.0,119380.0,0.45316046]
[1753370051656,0.9160164,119390.0,119380.0,0.95975506]
[1753370051853,0.9160164,119390.0,119380.0,1.00883506]
[1753370052150,0.9160164,119390.0,119380.0,1.11367506]
[1753370052151,0.74859,119390.0,119380.0,1.11367506]
[1753370052355,0.9160164,119390.0,119380.0,0.69900974]
[1753370052557,0.9160164,119390.0,119380.0,1.11667506]
[1753370052758,0.9160164,119390.0,119380.0,0.36866974]
[1753370052950,0.9160164,119390.0,119380.0,0.20122924]
[1753370053151,0.9160164,119390.0,119380.0,0.15388924]
[1753370054257,0.9160164,119390.0,119380.0,0.15588924]
[1753370054552,0.9160164,119390.0,119380.0,0.32332974]
[1753370054854,1.5993764,119390.0,119380.0,0.15588924]
[1753370055250,1.5993764,119390.0,119380.0,0.09692928]
[1753370055454,0.9160164,119390.0,119380.0,0.09692928]
[1753370055650,1.5980164,119390.0,119380.0,0.09692928]
[1753370057755,2.8527364,119390.0,119380.0,0.09692928]
[1753370058453,2.8034164,119390.0,119380.0,0.09692928]
[1753370058651,2.8034164,119390.0,119380.0,0.09702729]
[1753370059152,2.8034164,119390.0,119380.0,0.45071123]
[1753370059350,2.8034164,119390.0,119380.0,0.61815173]
[1753370059658,2.8034164,119390.0,119380.0,0.45071123]
[1753370059855,2.8034164,119390.0,119380.0,0.09702729]
[1753370060055,2.8034164,119390.0,119380.0,0.45071123]
[1753370060256,2.8034164,119390.0,119380.0,0.09702729]
[1753370060457,2.8034164,119390.0,119380.0,0.45071123]
[1753370061164,2.8034164,119390.0,119380.0,0.09702729]
[1753370061552,2.8034164,119390.0,119380.0,0.61815173]
[1753370061757,2.1214164,119390.0,119380.0,0.99883173]
[1753370061956,2.8014964,119390.0,119380.0,1.01079942]
[1753370062459,2.8014964,119390.0,119380.0,0.84335892]
[1753370062661,2.8014964,119390.0,119380.0,0.46267892]
[1753370062854,2.8014964,119390.0,119380.0,0.10899498]
[1753370063255,2.8014964,119390.0,119380.0,0.52346208]
[1753370063655,2.8014964,119390.0,119380.0,0.52246208]
[1753370063854,2.8014964,119390.0,119380.0,0.52046208]
[1753370064060,2.8014964,119390.0,119380.0,0.10599498]
[1753370066152,0.5552585,119360.0,119350.0,0.5481626]
[1753370066464,1.9583785,119360.0,119350.0,0.4741926]
[1753370066761,1.9583785,119360.0,119350.0,0.30671]
[1753370067359,1.9583785,119360.0,119350.0,0.33148693]
[1753370067559,1.9583785,119360.0,119350.0,0.33548693]
[1753370067961,2.08421827,119360.0,119350.0,0.02877693]
[1753370068261,2.49868537,119360.0,119350.0,0.02877693]
[1753370068458,2.08421827,119360.0,119350.0,0.02877693]
[1753370068859,1.40269827,119360.0,119350.0,0.26299599]
[1753370069059,2.08281827,119360.0,119350.0,0.2168226]
[1753370069261,2.08281827,119360.0,119350.0,0.04934]
[1753370069462,2.08281827,119360.0,119350.0,0.002]
[1753370070260,0.4411326,119350.0,119340.0,0.23922047]
[1753370070467,0.9160726,119350.0,119340.0,0.23922047]
[1753370071364,0.9160726,119350.0,119340.0,0.24022047]
[1753370071557,0.9160726,119350.0,119340.0,0.07273507]
[1753370071767,0.9160726,119350.0,119340.0,0.24123167]
[1753370071963,0.9160726,119350.0,119340.0,0.07373507]
[1753370072463,0.9160726,119350.0,119340.0,0.24123167]
[1753370072863,0.9160726,119350.0,119340.0,0.13985469]
[1753370073364,0.9160726,119350.0,119340.0,0.30735129]
[1753370074458,1.5947526,119350.0,119340.0,0.56907129]
[1753370074858,1.5947526,119350.0,119340.0,0.90956839]
[1753370075558,1.5943126,119350.0,119340.0,0.64069129]
[1753370075755,1.5943126,119350.0,119340.0,1.05515839]
[1753370075965,1.5461326,119350.0,119340.0,1.05515839]
[1753370076265,1.5944326,119350.0,119340.0,1.05515839]
[1753370076467,1.5944326,119350.0,119340.0,0.22215469]
[1753370076662,1.5944326,119350.0,119340.0,0.13985469]
[1753370076966,1.5944326,119350.0,119340.0,0.09251469]
[1753370077355,1.72027195,119350.0,119340.0,0.02639507]
[1753370077557,0.5552866,119340.0,119330.0,0.0001]
[1753370077764,2.1712466,119340.0,119330.0,0.0001]
[1753370078369,2.29627745,119340.0,119330.0,0.02414245]
[1753370078666,2.29627745,119340.0,119330.0,0.0001]
[1753370078867,2.29627745,119340.0,119330.0,0.1676106]
[1753370079270,2.29627745,119340.0,119330.0,0.1696106]
[1753370079469,2.29627745,119340.0,119330.0,0.0021]
[1753370079878,2.29627745,119340.0,119330.0,0.0041]
[1753370080373,2.29627745,119340.0,119330.0,0.1716106]
[1753370080567,2.29627745,119340.0,119330.0,0.2184806]
[1753370080568,2.97331745,119340.0,119330.0,0.2184806]
[1753370080768,2.97331745,119340.0,119330.0,0.6329477]
[1753370081168,2.97431745,119340.0,119330.0,0.6309477]
[1753370081364,2.24897745,119340.0,119330.0,0.98759796]
[1753370081572,2.68093,119340.0,119330.0,0.98759796]
[1753370081771,2.8484266,119340.0,119330.0,0.98759796]
[1753370082277,2.8484266,119340.0,119330.0,0.57313086]
[1753370082465,2.8484266,119340.0,119330.0,0.98759796]
[1753370082867,2.8484266,119340.0,119330.0,0.57313086]
[1753370083066,1.95645,119340.0,119330.0,0.57313086]
[1753370083372,2.63217,119340.0,119330.0,0.98759796]
[1753370083569,2.29268,119340.0,119330.0,0.98759796]
[1753370084074,2.4601766,119340.0,119330.0,0.98759796]
[1753370084275,2.5707966,119340.0,119330.0,0.98759796]
[1753370084972,2.5707966,119340.0,119330.0,0.57313086]
[1753370085275,2.5707966,119340.0,119330.0,0.98759796]
[1753370085473,2.6406466,119340.0,119330.0,0.98759796]
[1753370087675,2.6406466,119340.0,119330.0,0.57313086]
[1753370087877,2.47315,119340.0,119330.0,0.98759796]
[1753370088077,2.6406466,119340.0,119330.0,0.98759796]
[1753370088276,1.61696,119340.0,119330.0,0.98759796]
[1753370088478,2.29112,119340.0,119330.0,0.98759796]
[1753370088977,2.40174,119340.0,119330.0,0.98759796]
[1753370089179,2.47159,119340.0,119330.0,0.98759796]
[1753370089477,2.47123,119340.0,119330.0,0.98759796]
[1753370089679,2.47039,119340.0,119330.0,0.98759796]
[1753370090275,1.61696,119340.0,119330.0,0.98759796]
[1753370090482,2.28992,119340.0,119330.0,0.98759796]
[1753370091083,1.92912,119340.0,119330.0,0.98759796]
[1753370091383,2.40054,119340.0,119330.0,0.92693763]
[1753370091784,2.40054,119340.0,119330.0,0.57313086]
[1753370092176,2.40054,119340.0,119330.0,0.92693763]
[1753370093079,2.40054,119340.0,119330.0,0.57313086]
[1753370093080,2.47039,119340.0,119330.0,0.57313086]
[1753370093281,2.47039,119340.0,119330.0,0.92693763]
[1753370093884,2.6378866,119340.0,119330.0,0.92693763]
[1753370094086,2.6853666,119340.0,119330.0,0.92693763]
[1753370094287,2.6853666,119340.0,119330.0,0.57313086]
[1753370094487,2.6853666,119340.0,119330.0,0.92693763]
[1753370094780,2.6853666,119340.0,119330.0,0.57313086]
[1753370094987,2.6853666,119340.0,119330.0,0.92693763]
[1753370096680,2.6853666,119340.0,119330.0,0.59526763]
[1753370096886,2.6853666,119340.0,119330.0,0.54639763]
[1753370097283,2.6853666,119340.0,119330.0,0.59526763]
[1753370097483,2.6853666,119340.0,119330.0,0.67571763]
[1753370097676,2.0124066,119340.0,119330.0,0.97119396]
[1753370097882,2.46579,119340.0,119330.0,0.97119396]
[1753370098081,2.46559,119340.0,119330.0,0.97119396]
[1753370098282,1.25616,119340.0,119330.0,1.33199396]
[1753370098481,0.66916,119340.0,119330.0,1.81958596]
[1753370098687,0.66916,119340.0,119330.0,1.65199396]
[1753370098889,0.66868,119340.0,119330.0,1.65199396]
[1753370099189,0.66868,119340.0,119330.0,1.60773763]
[1753370099681,0.66836,119340.0,119330.0,1.60773763]
[1753370099884,0.77898,119340.0,119330.0,1.60773763]
[1753370100183,0.77898,119340.0,119330.0,1.24693763]
[1753370100184,0.77798,119340.0,119330.0,1.24693763]
[1753370100383,0.77798,119340.0,119330.0,1.29127033]
[1753370100786,0.77798,119340.0,119330.0,1.26693763]
[1753370101289,1.13878,119340.0,119330.0,0.92693763]
[1753370101484,1.20863,119340.0,119330.0,0.92693763]
[1753370101885,1.20863,119340.0,119330.0,0.94693763]
[1753370102086,1.3761266,119340.0,119330.0,0.94693763]
[1753370102385,1.4236066,119340.0,119330.0,0.92693763]
[1753370102583,1.4236066,119340.0,119330.0,0.57513086]
[1753370102784,1.4236066,119340.0,119330.0,0.92893763]
[1753370102984,1.4236066,119340.0,119330.0,0.57513086]
[1753370103183,1.4236066,119340.0,119330.0,0.92893763]
[1753370103380,1.4236066,119340.0,119330.0,0.92693763]
[1753370103992,1.4236066,119340.0,119330.0,0.57313086]
[1753370104191,1.4246066,119340.0,119330.0,0.02508026]
[1753370104394,0.1675387,119310.0,119300.0,0.07364975]
[1753370104584,0.5223827,119300.0,119290.0,0.14137376]
[1753370104783,1.23698947,119300.0,119290.0,0.06772401]
[1753370104984,0.5223968,119290.0,119280.0,0.15197965]
[1753370105189,1.5494768,119290.0,119280.0,0.17706204]
[1753370105386,0.3885108,119280.0,119270.0,0.36146905]
[1753370105592,0.8832108,119280.0,119270.0,0.36223]
[1753370105782,1.00937998,119280.0,119270.0,0.36223]
[1753370106691,1.38219,119280.0,119270.0,1.00599904]
[1753370106990,1.5264908,119280.0,119270.0,0.66472726]
[1753370107191,1.5264908,119280.0,119270.0,0.66672726]
[1753370107396,1.5264908,119280.0,119270.0,1.08193595]
[1753370107591,1.5497708,119280.0,119270.0,0.16946536]
[1753370107899,1.5497708,119280.0,119270.0,0.33706026]
[1753370108288,1.5497708,119280.0,119270.0,0.12059536]
[1753370108493,1.5497708,119280.0,119270.0,0.21425335]
[1753370108694,1.5497708,119280.0,119270.0,0.04665845]
[1753370109099,1.5497708,119280.0,119270.0,0.21425335]
[1753370109307,1.5497708,119280.0,119270.0,0.04665845]
[1753370109608,1.5497708,119280.0,119270.0,0.25927335]
[1753370109800,1.5497708,119280.0,119270.0,0.25527335]
[1753370110000,1.38219,119280.0,119270.0,0.67148204]
[1753370110201,1.5488108,119280.0,119270.0,0.88380204]
[1753370110396,1.23813,119280.0,119270.0,1.00444204]
[1753370110905,1.02628,119280.0,119270.0,1.07937895]
[1753370111104,0.3608,119280.0,119270.0,1.07937895]
[1753370111402,1.4050291,119290.0,119280.0,0.2406008]
[1753370111600,1.4050291,119290.0,119280.0,0.96076949]
[1753370112402,1.5279691,119290.0,119280.0,0.96076949]
[1753370113403,0.65334,119290.0,119280.0,0.5455608]
[1753370113708,1.02568,119290.0,119280.0,0.96076949]
[1753370113912,0.53016,119300.0,119290.0,0.1675668]
[1753370114206,1.1925127,119300.0,119290.0,0.96075549]
[1753370114412,1.2933327,119300.0,119290.0,0.96075549]
[1753370114614,1.19432,119300.0,119290.0,1.0198307]
[1753370115014,1.3618727,119300.0,119290.0,1.0198307]
[1753370115508,1.3851527,119300.0,119290.0,0.27166201]
[1753370115714,1.3871527,119300.0,119290.0,0.27166201]
[1753370116105,1.3881527,119300.0,119290.0,0.2125868]
[1753370116615,1.3881527,119300.0,119290.0,0.1675668]
[1753370117209,1.3881527,119300.0,119290.0,0.22664201]
[1753370117513,1.51450771,119300.0,119290.0,0.05907521]
[1753370118006,0.5166068,119290.0,119280.0,0.31355751]
[1753370118212,0.8774068,119290.0,119280.0,0.31355751]
[1753370118411,0.8774068,119290.0,119280.0,0.05907521]
[1753370118616,0.8774068,119290.0,119280.0,0.22665601]
[1753370118811,1.41864793,119290.0,119280.0,0.05907521]
[1753370119012,1.00343924,119290.0,119280.0,0.22665601]
[1753370119212,1.00343924,119290.0,119280.0,0.05907521]
[1753370119407,1.00743924,119290.0,119280.0,0.05907521]
[1753370119713,0.4601208,119280.0,119270.0,0.40286969]
[1753370119915,1.4859608,119280.0,119270.0,0.44788969]
[1753370120109,1.4859608,119280.0,119270.0,0.33129433]
[1753370120110,1.61145242,119280.0,119270.0,0.33129433]
[1753370120418,1.61145242,119280.0,119270.0,0.40523124]
[1753370120716,1.61145242,119280.0,119270.0,0.33129433]
[1753370121510,1.61145242,119280.0,119270.0,0.14502]
[1753370122018,1.61145242,119280.0,119270.0,0.21895691]
[1753370122214,1.61245242,119280.0,119270.0,0.35390905]
[1753370122407,1.61345242,119280.0,119270.0,0.35390905]
[1753370124023,1.61345242,119280.0,119270.0,0.18631415]
[1753370124608,0.4277149,119270.0,119260.0,0.06654433]
[1753370124818,0.2907889,119260.0,119250.0,0.32848251]
[1753370125012,1.4514489,119260.0,119250.0,0.32848251]
[1753370125220,1.57740817,119260.0,119250.0,0.27712838]
[1753370125519,1.57740817,119260.0,119250.0,0.39608529]
[1753370125818,1.57740817,119260.0,119250.0,0.32745902]
[1753370126018,2.83336817,119260.0,119250.0,0.15983602]
[1753370126217,2.66575927,119260.0,119250.0,0.32745902]
[1753370126416,2.00283927,119260.0,119250.0,0.43253902]
[1753370126618,2.66587927,119260.0,119250.0,1.07662771]
[1753370126813,2.83348817,119260.0,119250.0,1.07662771]
[1753370127012,2.17044817,119260.0,119250.0,0.58748211]
[1753370127316,2.83340817,119260.0,119250.0,0.58748211]
[1753370127614,2.83340817,119260.0,119250.0,0.25452211]
[1753370128618,2.83340817,119260.0,119250.0,0.08689911]
[1753370128808,3.24861686,119260.0,119250.0,0.04602]
[1753370129013,2.83340817,119260.0,119250.0,0.001]
[1753370129219,3.24861686,119260.0,119250.0,0.001]
[1753370129414,3.24861686,119260.0,119250.0,0.168623]
[1753370129723,3.24861686,119260.0,119250.0,0.213643]
[1753370129724,2.83272817,119260.0,119250.0,0.213643]
[1753370130322,2.66495927,119260.0,119250.0,0.96181169]
[1753370131015,2.53864,119260.0,119250.0,1.00361528]
[1753370131215,2.53852,119260.0,119250.0,1.00361528]
[1753370131420,1.75488,119260.0,119250.0,1.00361528]
[1753370131619,2.27816,119260.0,119250.0,1.00361528]
[1753370131924,0.6614,119260.0,119250.0,1.00361528]
[1753370132112,0.49723,119270.0,119260.0,0.5455889]
[1753370132315,1.15871,119270.0,119260.0,0.96079759]
[1753370133018,1.1106,119270.0,119260.0,0.5455889]
[1753370133223,1.11092,119270.0,119260.0,0.5455889]
[1753370133421,1.11092,119270.0,119260.0,0.96079759]
[1753370133619,1.11292,119270.0,119260.0,0.96079759]
[1753370133825,0.75212,119270.0,119260.0,0.96079759]
[1753370134122,0.6638,119270.0,119260.0,0.96079759]
[1753370134322,0.66336,119270.0,119260.0,0.96079759]
[1753370134818,1.2800749,119270.0,119260.0,0.96079759]
[1753370135025,1.02416,119270.0,119260.0,0.96079759]
[1753370135723,1.02416,119270.0,119260.0,0.5455889]
[1753370135918,1.02416,119270.0,119260.0,0.96079759]
[1753370136118,1.11248,119270.0,119260.0,0.96079759]
[1753370136319,1.16059,119270.0,119260.0,0.96079759]
[1753370137017,1.28261,119270.0,119260.0,0.96079759]
[1753370137324,1.28261,119270.0,119260.0,0.5455889]
[1753370137523,1.28261,119270.0,119260.0,0.96079759]
[1753370137725,1.28261,119270.0,119260.0,0.5455889]
[1753370137928,1.28261,119270.0,119260.0,0.96079759]
[1753370138118,0.002,119270.0,119260.0,1.35941311]
[1753370138323,0.65904,119270.0,119260.0,1.55182831]
[1753370138528,0.6022576,119290.0,119280.0,0.3208508]
[1753370138721,1.2611376,119290.0,119280.0,0.3208508]
[1753370139027,1.2611376,119290.0,119280.0,0.5455608]
[1753370139823,1.2641376,119290.0,119280.0,0.5455608]
[1753370140331,1.3228776,119290.0,119280.0,0.5455608]
[1753370140515,1.3228776,119290.0,119280.0,0.2126008]
[1753370140829,1.3228776,119290.0,119280.0,0.3223208]
[1753370141022,1.3228776,119290.0,119280.0,0.3952008]
[1753370141215,1.3228776,119290.0,119280.0,0.5430008]
[1753370142428,1.3228776,119290.0,119280.0,0.2903808]
[1753370142628,1.73808629,119290.0,119280.0,0.2126008]
[1753370142928,1.3228776,119290.0,119280.0,0.2126008]
[1753370143724,1.3228776,119290.0,119280.0,0.5430008]
[1753370144536,1.3228776,119290.0,119280.0,0.2903808]
[1753370145230,1.3228776,119290.0,119280.0,0.4729808]
[1753370145430,1.3228776,119290.0,119280.0,0.5430008]
[1753370148434,0.6639976,119290.0,119280.0,0.95820949]
[1753370148743,1.3210376,119290.0,119280.0,0.95820949]
[1753370148931,1.3210376,119290.0,119280.0,0.5430008]
[1753370149128,0.6639976,119290.0,119280.0,0.95820949]
[1753370149334,1.3225176,119290.0,119280.0,0.95820949]
[1753370149635,1.3225176,119290.0,119280.0,0.5430008]
[1753370150335,1.3225176,119290.0,119280.0,0.95820949]
[1753370150738,0.6639976,119290.0,119280.0,0.95820949]
[1753370150931,1.3230776,119290.0,119280.0,0.95820949]
[1753370151533,1.3230776,119290.0,119280.0,0.5430008]
[1753370158941,0.2950608,119280.0,119270.0,0.04903]
[1753370159149,1.08978898,119280.0,119270.0,0.04903]
[1753370159344,1.08978885,119280.0,119270.0,0.2166249]
[1753370159647,0.6558608,119280.0,119270.0,0.2166249]
[1753370160244,0.67559217,119280.0,119270.0,0.04903]
[1753370160446,0.1675949,119270.0,119260.0,0.27001232]
[1753370160750,1.3149549,119270.0,119260.0,0.2166389]
[1753370160951,1.3149549,119270.0,119260.0,0.04903]
[1753370161353,0.2950889,119260.0,119250.0,0.09083359]
[1753370161655,0.6558889,119260.0,119250.0,0.25845659]
[1753370162251,0.6558889,119260.0,119250.0,0.09083359]
[1753370163045,1.07109759,119260.0,119250.0,0.04180359]
[1753370163244,1.07109759,119260.0,119240.0,0.17365399]
[1753370163245,0.295103,119250.0,119240.0,0.17365399]
[1753370163445,1.314143,119250.0,119240.0,0.21581962]
[1753370163641,1.314143,119250.0,119240.0,0.32430956]
[1753370163847,1.314143,119250.0,119240.0,0.15667256]
[1753370164149,2.570223,119250.0,119240.0,0.15667256]
[1753370164346,2.69550193,119250.0,119240.0,0.15667256]
[1753370164557,3.11071062,119250.0,119240.0,0.15667256]
[1753370164854,3.11071062,119250.0,119240.0,0.04416563]
[1753370165257,3.11071062,119250.0,119240.0,0.04516563]
[1753370165459,3.11071062,119250.0,119240.0,0.003]
[1753370165751,2.69550193,119250.0,119240.0,0.003]
[1753370166255,2.69550193,119250.0,119240.0,0.219667]
[1753370166450,2.69550193,119250.0,119240.0,0.05203]
[1753370166653,2.03726193,119250.0,119240.0,0.402267]
[1753370166852,2.69774193,119250.0,119240.0,0.550067]
[1753370167150,2.69774193,119250.0,119240.0,0.12981]
[1753370167352,2.69774193,119250.0,119240.0,0.12011533]
[1753370167553,3.11295062,119250.0,119240.0,0.003]
[1753370167746,2.69774193,119250.0,119240.0,0.003]
[1753370168157,2.69774193,119250.0,119240.0,0.05203]
[1753370168357,2.69774193,119250.0,119240.0,0.09400879]
[1753370168758,2.69774193,119250.0,119240.0,0.26164579]
[1753370169555,2.03726193,119250.0,119240.0,0.26164579]
[1753370169753,2.03726193,119250.0,119240.0,0.09400879]
[1753370170056,2.69846193,119250.0,119240.0,0.04497879]
[1753370170256,2.86618193,119250.0,119240.0,0.003]
[1753370170452,0.2833411,119230.0,119220.0,0.10472706]
[1753370170647,2.08094979,119230.0,119220.0,0.33403044]
[1753370170958,0.2830951,119220.0,119210.0,0.27240456]
[1753370171257,0.6438951,119220.0,119210.0,0.27240456]
[1753370171659,1.05910379,119220.0,119210.0,0.05914706]
[1753370172258,1.18544071,119220.0,119210.0,0.22682626]
[1753370172457,1.18544071,119220.0,119210.0,0.27240626]
[1753370172657,1.18544071,119220.0,119210.0,0.31532863]
[1753370172853,0.77023202,119220.0,119210.0,0.31532863]
[1753370173451,0.77023202,119220.0,119210.0,0.25618157]
[1753370173851,0.60256692,119220.0,119210.0,0.99430026]
[1753370174151,1.3032551,119220.0,119210.0,0.99430026]
[1753370174353,1.3032551,119220.0,119210.0,0.7081845]
[1753370175359,1.3032951,119220.0,119210.0,0.7081845]
[1753370176259,1.3032951,119220.0,119210.0,1.12539319]
[1753370176648,0.47623,119220.0,119210.0,1.12539319]
[1753370176955,0.40947,119220.0,119210.0,1.06607876]
[1753370177159,0.47623,119230.0,119220.0,0.5361551]
[1753370177459,1.3019611,119230.0,119220.0,0.5361551]
[1753370177767,1.3019611,119230.0,119220.0,1.01067396]
[1753370178253,0.6438811,119230.0,119220.0,0.59546527]
[1753370178453,1.3017211,119230.0,119220.0,1.01167396]
[1753370178655,1.3017211,119230.0,119220.0,0.59646527]
[1753370178856,1.3017211,119230.0,119220.0,1.01167396]
[1753370179256,1.3017211,119230.0,119220.0,0.59746527]
[1753370180157,1.3017211,119230.0,119220.0,1.01267396]
[1753370180460,1.3017211,119230.0,119220.0,0.59746527]
[1753370180653,1.3017211,119230.0,119220.0,1.01267396]
[1753370180855,1.3017211,119230.0,119220.0,0.59746527]
[1753370181356,0.47623,119230.0,119220.0,0.59746527]
[1753370181657,0.6438811,119230.0,119220.0,0.95336379]
[1753370181849,1.3009611,119230.0,119220.0,0.95336379]
[1753370182055,1.3020011,119230.0,119220.0,1.01269817]
[1753370182362,0.3608,119230.0,119220.0,1.01269817]
[1753370182664,1.0188,119230.0,119220.0,1.0273007]
[1753370182849,1.0188,119230.0,119220.0,1.33336379]
[1753370183055,0.643867,119240.0,119230.0,0.3141411]
[1753370183258,0.47623,119240.0,119230.0,1.01067978]
[1753370183552,1.301147,119240.0,119230.0,1.01067978]
[1753370183750,1.13351,119240.0,119230.0,1.01067978]
[1753370183960,1.06675,119240.0,119230.0,1.01067978]
[1753370184160,1.06623,119240.0,119230.0,0.5361411]
[1753370184353,1.06623,119240.0,119230.0,0.95134979]
[1753370184754,0.3608,119240.0,119230.0,0.95134979]
[1753370184961,1.01704,119240.0,119230.0,0.8861411]
[1753370185159,1.01704,119240.0,119230.0,1.29134979]
[1753370185362,1.233347,119240.0,119230.0,0.95134979]
[1753370185662,1.06571,119240.0,119230.0,0.95134979]
[1753370185849,1.06571,119240.0,119230.0,0.5361411]
[1753370186054,1.233347,119240.0,119230.0,0.95134979]
[1753370186754,1.06571,119240.0,119230.0,0.95134979]
[1753370187352,1.233347,119240.0,119230.0,0.95134979]
[1753370187556,1.233347,119240.0,119230.0,0.5361411]
[1753370187759,1.233347,119240.0,119230.0,0.95134979]
[1753370188457,1.233347,119240.0,119230.0,0.5361411]